[Event "Early-Titled-Tuesday-Blitz-November-28-2023"]
[Site "Chess.com"]
[Date "2023.11.28"]
[Round "5"]
[White "KejJaj"]
[Black "Tsomaia_Nikoloz"]
[Result "1-0"]
[WhiteElo "2168"]
[BlackElo "2357"]
[TimeControl "180+1"]
[EndTime "8:57:40 PST"]
[Termination "KejJaj won on time"]

1. d4 {[%clk 0:03:00.9]} 1... Nf6 {[%clk 0:02:59.6]} 2. Bf4 {[%clk 0:03:01.4]}
2... c5 {[%clk 0:02:56.8]} 3. d5 {[%clk 0:03:00.5]} 3... g6 {[%clk 0:02:55.8]}
4. Nc3 {[%clk 0:02:59.2]} 4... Bg7 {[%clk 0:02:55.7]} 5. e4 {[%clk 0:02:59.7]}
5... d6 {[%clk 0:02:56.2]} 6. a4 {[%clk 0:02:56.1]} 6... O-O {[%clk 0:02:55.9]}
7. Nf3 {[%clk 0:02:53.2]} 7... Bg4 {[%clk 0:02:51.4]} 8. h3 {[%clk 0:02:52.2]}
8... Bxf3 {[%clk 0:02:47.6]} 9. Qxf3 {[%clk 0:02:53.1]} 9... Qb6 {[%clk
0:02:47.5]} 10. Rb1 {[%clk 0:02:42.8]} 10... Na6 {[%clk 0:02:11.6]} 11. Bc4
{[%clk 0:02:08.2]} 11... Nb4 {[%clk 0:02:10.5]} 12. Qe2 {[%clk 0:02:08.3]} 12...
Nd7 {[%clk 0:01:59.8]} 13. O-O {[%clk 0:02:06.4]} 13... a6 {[%clk 0:01:59.3]}
14. Qd2 {[%clk 0:02:00.4]} 14... Qa5 {[%clk 0:01:54.9]} 15. Bh6 {[%clk
0:01:55.2]} 15... Bxh6 {[%clk 0:01:42]} 16. Qxh6 {[%clk 0:01:56.1]} 16... Nxc2
{[%clk 0:01:42.5]} 17. h4 {[%clk 0:01:41.7]} 17... Ne5 {[%clk 0:01:27.4]} 18.
Bb3 {[%clk 0:01:40.6]} 18... Nd4 {[%clk 0:01:27]} 19. Bd1 {[%clk 0:01:36.4]}
19... Rfb8 {[%clk 0:01:14.9]} 20. f4 {[%clk 0:01:30.7]} 20... Nc4 {[%clk
0:01:13.5]} 21. f5 {[%clk 0:01:29.3]} 21... Qd8 {[%clk 0:01:07.6]} 22. fxg6
{[%clk 0:01:25.7]} 22... hxg6 {[%clk 0:01:04.5]} 23. h5 {[%clk 0:01:22.9]} 23...
Qf8 {[%clk 0:01:04.2]} 24. Qg5 {[%clk 0:01:23]} 24... Qg7 {[%clk 0:00:53.9]} 25.
Qxe7 {[%clk 0:01:13.5]} 25... Re8 {[%clk 0:00:27.6]} 26. Qxb7 {[%clk 0:01:12.7]}
26... Nd2 {[%clk 0:00:27.3]} 27. Rf4 {[%clk 0:00:47.7]} 27... Nxb1 {[%clk
0:00:24.5]} 28. Nxb1 {[%clk 0:00:48.6]} 28... Rab8 {[%clk 0:00:19.7]} 29. Qxa6
{[%clk 0:00:47]} 29... Qh6 {[%clk 0:00:14]} 30. Qxd6 {[%clk 0:00:43.9]} 30...
Rxb2 {[%clk 0:00:08.4]} 31. Nc3 {[%clk 0:00:41.5]} 31... Rd2 {[%clk 0:00:06.9]}
32. hxg6 {[%clk 0:00:38.8]} 32... fxg6 {[%clk 0:00:06.5]} 33. Rg4 {[%clk
0:00:35.5]} 33... Kh7 {[%clk 0:00:04.6]} 34. Qd7+ {[%clk 0:00:35]} 34... Qg7
{[%clk 0:00:03.7]} 35. Qxe8 {[%clk 0:00:34.8]} 35... Nf3+ {[%clk 0:00:01.5]} 36.
Bxf3 {[%clk 0:00:29.2]} 36... Qd4+ {[%clk 0:00:02.4]} 37. Kh2 {[%clk 0:00:27.1]}
1-0

[Event "Early-Titled-Tuesday-Blitz-November-28-2023"]
[Site "Chess.com"]
[Date "2023.11.28"]
[Round "5"]
[White "Flaccidmoves"]
[Black "Bodhanas"]
[Result "1-0"]
[WhiteElo "2395"]
[BlackElo "2210"]
[TimeControl "180+1"]
[EndTime "8:57:43 PST"]
[Termination "Flaccidmoves won by resignation"]

1. d4 {[%clk 0:03:00.9]} 1... Nf6 {[%clk 0:02:56.3]} 2. c4 {[%clk 0:03:00.8]}
2... g6 {[%clk 0:02:56.2]} 3. Nc3 {[%clk 0:03:01.2]} 3... Bg7 {[%clk 0:02:56.6]}
4. e4 {[%clk 0:03:01.7]} 4... d6 {[%clk 0:02:51.7]} 5. Nf3 {[%clk 0:03:02]} 5...
O-O {[%clk 0:02:51.5]} 6. h3 {[%clk 0:03:02.5]} 6... Nbd7 {[%clk 0:02:50.4]} 7.
Be3 {[%clk 0:03:00.5]} 7... b6 {[%clk 0:02:49.9]} 8. Bd3 {[%clk 0:02:49]} 8...
Bb7 {[%clk 0:02:48.4]} 9. O-O {[%clk 0:02:46.6]} 9... e5 {[%clk 0:02:47.7]} 10.
d5 {[%clk 0:02:45.3]} 10... Nh5 {[%clk 0:02:40.6]} 11. g3 {[%clk 0:02:38.9]}
11... f5 {[%clk 0:02:31.3]} 12. exf5 {[%clk 0:02:30.6]} 12... gxf5 {[%clk
0:02:30.8]} 13. Ng5 {[%clk 0:02:30.7]} 13... Nhf6 {[%clk 0:02:22.8]} 14. Bxf5
{[%clk 0:02:23.7]} 14... Qe7 {[%clk 0:02:15]} 15. Ne6 {[%clk 0:02:19.6]} 15...
Rf7 {[%clk 0:02:11.1]} 16. Nxc7 {[%clk 0:02:18.2]} 16... Rc8 {[%clk 0:02:05.5]}
17. N7b5 {[%clk 0:02:09]} 17... Rxc4 {[%clk 0:01:58.4]} 18. Be6 {[%clk
0:02:04.5]} 18... a6 {[%clk 0:01:46.6]} 19. Na3 {[%clk 0:01:53.4]} 19... Rc8
{[%clk 0:01:42.9]} 20. Rc1 {[%clk 0:01:45.7]} 20... b5 {[%clk 0:01:39.3]} 21.
Nc2 {[%clk 0:01:42.3]} 21... Kh8 {[%clk 0:01:34.3]} 22. Bxf7 {[%clk 0:01:41]}
22... Qxf7 {[%clk 0:01:33.7]} 23. Qf3 {[%clk 0:01:34.6]} 23... Rf8 {[%clk
0:01:22.9]} 24. Rcd1 {[%clk 0:01:26]} 24... Qg6 {[%clk 0:01:20.6]} 25. Nb4
{[%clk 0:01:22.7]} 25... Nxd5 {[%clk 0:01:12.9]} 26. Qg4 {[%clk 0:01:20.6]}
26... Qxg4 {[%clk 0:01:11.3]} 27. hxg4 {[%clk 0:01:20.2]} 27... Nxb4 {[%clk
0:01:09.8]} 28. Rxd6 {[%clk 0:01:12.5]} 28... Nf6 {[%clk 0:00:59.6]} 29. Bc5
{[%clk 0:01:02.4]} 29... Nc6 {[%clk 0:00:52.7]} 30. g5 {[%clk 0:00:58.4]} 30...
Ng4 {[%clk 0:00:44]} 31. Rd7 {[%clk 0:00:54.1]} 31... Bc8 {[%clk 0:00:25.6]} 32.
Rc7 {[%clk 0:00:51.1]} 32... Rd8 {[%clk 0:00:23.8]} 33. Rxc6 {[%clk 0:00:50.6]}
33... Bf5 {[%clk 0:00:19.6]} 34. Rd1 {[%clk 0:00:46.3]} 34... Rxd1+ {[%clk
0:00:18.3]} 35. Nxd1 {[%clk 0:00:47.2]} 35... Kg8 {[%clk 0:00:17.2]} 36. Rc7
{[%clk 0:00:46.2]} 36... Be4 {[%clk 0:00:16.6]} 37. Ne3 {[%clk 0:00:45.3]} 37...
Nxe3 {[%clk 0:00:16.1]} 38. Bxe3 {[%clk 0:00:46.2]} 38... Bf3 {[%clk 0:00:16.3]}
39. b3 {[%clk 0:00:44.6]} 39... e4 {[%clk 0:00:15.9]} 40. Ra7 {[%clk 0:00:43.9]}
40... Bc3 {[%clk 0:00:15.1]} 41. Rxa6 {[%clk 0:00:43.7]} 41... b4 {[%clk
0:00:15.4]} 42. Rb6 {[%clk 0:00:43.8]} 42... Be2 {[%clk 0:00:14.6]} 43. Bc5
{[%clk 0:00:43.2]} 43... Kf7 {[%clk 0:00:13.5]} 44. Bxb4 {[%clk 0:00:43.3]}
44... Bxb4 {[%clk 0:00:13.2]} 45. Rxb4 {[%clk 0:00:44.2]} 45... Bd3 {[%clk
0:00:13.2]} 46. a4 {[%clk 0:00:42.4]} 46... Kg6 {[%clk 0:00:12.8]} 47. a5 {[%clk
0:00:42.9]} 47... Kxg5 {[%clk 0:00:12.9]} 48. Rb6 {[%clk 0:00:43.3]} 48... Kg4
{[%clk 0:00:12.3]} 49. a6 {[%clk 0:00:43.5]} 49... Bxa6 {[%clk 0:00:11.3]} 50.
Rxa6 {[%clk 0:00:43.6]} 50... e3 {[%clk 0:00:11.8]} 51. fxe3 {[%clk 0:00:42.7]}
1-0

[Event "Early-Titled-Tuesday-Blitz-November-28-2023"]
[Site "Chess.com"]
[Date "2023.11.28"]
[Round "5"]
[White "DarZay"]
[Black "amanjazu"]
[Result "1-0"]
[WhiteElo "2250"]
[BlackElo "2391"]
[TimeControl "180+1"]
[EndTime "8:57:47 PST"]
[Termination "DarZay won by checkmate"]

1. e4 {[%clk 0:03:00.9]} 1... e6 {[%clk 0:02:59.3]} 2. d4 {[%clk 0:02:56.3]}
2... d5 {[%clk 0:03:00.2]} 3. Bd3 {[%clk 0:02:56.4]} 3... Nf6 {[%clk 0:02:59.7]}
4. e5 {[%clk 0:02:54]} 4... Nfd7 {[%clk 0:03:00]} 5. f4 {[%clk 0:02:50.6]} 5...
c5 {[%clk 0:03:00]} 6. c3 {[%clk 0:02:48.3]} 6... Nc6 {[%clk 0:03:00.9]} 7. Nf3
{[%clk 0:02:47.9]} 7... Qb6 {[%clk 0:03:00.8]} 8. Bc2 {[%clk 0:02:43.1]} 8... f6
{[%clk 0:02:48.8]} 9. O-O {[%clk 0:02:32.3]} 9... cxd4 {[%clk 0:02:42.1]} 10.
cxd4 {[%clk 0:02:31.2]} 10... Be7 {[%clk 0:02:27.9]} 11. Nc3 {[%clk 0:02:18.9]}
11... O-O {[%clk 0:02:25.7]} 12. Kh1 {[%clk 0:02:15.1]} 12... f5 {[%clk
0:01:40.3]} 13. Rb1 {[%clk 0:01:56.9]} 13... Nb4 {[%clk 0:01:39.6]} 14. Bb3
{[%clk 0:01:52.4]} 14... Nb8 {[%clk 0:01:26.3]} 15. a3 {[%clk 0:01:39.8]} 15...
N4c6 {[%clk 0:01:16.5]} 16. Be3 {[%clk 0:01:32.7]} 16... Bd7 {[%clk 0:01:14.9]}
17. Rg1 {[%clk 0:01:25]} 17... Na5 {[%clk 0:01:07.9]} 18. Bc2 {[%clk 0:01:21.9]}
18... Nc4 {[%clk 0:01:07.5]} 19. Bf2 {[%clk 0:01:21.3]} 19... Nc6 {[%clk
0:01:00.1]} 20. g4 {[%clk 0:01:13.1]} 20... fxg4 {[%clk 0:00:58.8]} 21. Rxg4
{[%clk 0:01:09.7]} 21... Rf7 {[%clk 0:00:45.2]} 22. f5 {[%clk 0:00:51.1]} 22...
Raf8 {[%clk 0:00:41]} 23. Ng5 {[%clk 0:00:43.1]} 23... Rxf5 {[%clk 0:00:35.8]}
24. Bxf5 {[%clk 0:00:39.8]} 24... Rxf5 {[%clk 0:00:36.7]} 25. Qg1 {[%clk
0:00:31.8]} 25... Qd8 {[%clk 0:00:06.7]} 26. Nxh7 {[%clk 0:00:17.4]} 26... Kxh7
{[%clk 0:00:06.1]} 27. Rxg7+ {[%clk 0:00:16.2]} 27... Kh8 {[%clk 0:00:05.9]} 28.
Qg6 {[%clk 0:00:16.3]} 28... Rh5 {[%clk 0:00:06.1]} 29. Qxh5+ {[%clk 0:00:15.9]}
29... Kxg7 {[%clk 0:00:04.8]} 30. Rg1+ {[%clk 0:00:15.7]} 30... Kf8 {[%clk
0:00:05.3]} 31. Qh8+ {[%clk 0:00:13.9]} 31... Kf7 {[%clk 0:00:04.5]} 32. Rg7#
{[%clk 0:00:14]} 1-0

[Event "Early-Titled-Tuesday-Blitz-November-28-2023"]
[Site "Chess.com"]
[Date "2023.11.28"]
[Round "5"]
[White "DawidCzerw"]
[Black "zeitnotakrobat"]
[Result "1-0"]
[WhiteElo "2536"]
[BlackElo "2398"]
[TimeControl "180+1"]
[EndTime "8:57:49 PST"]
[Termination "DawidCzerw won by resignation"]

1. e4 {[%clk 0:03:00.9]} 1... c5 {[%clk 0:02:59.8]} 2. Nf3 {[%clk 0:03:00.9]}
2... e6 {[%clk 0:02:59.8]} 3. d4 {[%clk 0:03:01.2]} 3... cxd4 {[%clk 0:02:59.9]}
4. Nxd4 {[%clk 0:03:02.1]} 4... a6 {[%clk 0:03:00.1]} 5. Nc3 {[%clk 0:03:02.6]}
5... Qc7 {[%clk 0:03:00.3]} 6. Qf3 {[%clk 0:03:00.5]} 6... Nf6 {[%clk
0:02:58.8]} 7. Qg3 {[%clk 0:02:59.1]} 7... Qxg3 {[%clk 0:02:54.5]} 8. hxg3
{[%clk 0:03:00]} 8... Bb4 {[%clk 0:02:53.6]} 9. f3 {[%clk 0:02:55.9]} 9... d5
{[%clk 0:02:53.2]} 10. e5 {[%clk 0:02:50]} 10... Nfd7 {[%clk 0:02:51.8]} 11. f4
{[%clk 0:02:50.1]} 11... Nc6 {[%clk 0:02:45.6]} 12. Be3 {[%clk 0:02:48.6]} 12...
Nc5 {[%clk 0:02:28.7]} 13. Bd3 {[%clk 0:02:43.5]} 13... Nxd3+ {[%clk 0:02:13.6]}
14. cxd3 {[%clk 0:02:44.4]} 14... Bd7 {[%clk 0:02:10.9]} 15. Ke2 {[%clk
0:02:35.1]} 15... Rc8 {[%clk 0:02:01.6]} 16. Rac1 {[%clk 0:02:26.8]} 16... Ke7
{[%clk 0:01:59.6]} 17. g4 {[%clk 0:02:25.6]} 17... h6 {[%clk 0:01:55.7]} 18.
Nxc6+ {[%clk 0:02:13]} 18... Bxc6 {[%clk 0:01:51.3]} 19. Bd4 {[%clk 0:02:07.8]}
19... Rhd8 {[%clk 0:01:25.5]} 20. f5 {[%clk 0:02:01.4]} 20... Kf8 {[%clk
0:01:14.8]} 21. f6 {[%clk 0:01:47]} 21... b5 {[%clk 0:01:02.7]} 22. Rh5 {[%clk
0:01:42.3]} 22... Ba5 {[%clk 0:00:28.4]} 23. g5 {[%clk 0:01:32.5]} 23... b4
{[%clk 0:00:23.8]} 24. gxh6 {[%clk 0:01:14.4]} 24... gxh6 {[%clk 0:00:17.7]} 25.
Rxh6 {[%clk 0:01:10.3]} 25... Ke8 {[%clk 0:00:17.7]} 26. Nb1 {[%clk 0:01:03.3]}
26... Bb5 {[%clk 0:00:13.2]} 27. Rxc8 {[%clk 0:00:30.1]} 27... Rxc8 {[%clk
0:00:13]} 28. Rh8+ {[%clk 0:00:22.9]} 28... Kd7 {[%clk 0:00:13]} 29. Rxc8 {[%clk
0:00:23.8]} 29... Kxc8 {[%clk 0:00:13.2]} 30. b3 {[%clk 0:00:21.9]} 30... Bc7
{[%clk 0:00:10]} 31. Nd2 {[%clk 0:00:20.7]} 31... a5 {[%clk 0:00:09.9]} 32. Nf3
{[%clk 0:00:19.8]} 32... Kd8 {[%clk 0:00:09.6]} 33. Bc5 {[%clk 0:00:19.5]} 33...
Ke8 {[%clk 0:00:07.5]} 34. g4 {[%clk 0:00:17.9]} 34... Ba6 {[%clk 0:00:06.7]}
35. g5 {[%clk 0:00:17.4]} 35... Bb5 {[%clk 0:00:06.4]} 36. g6 {[%clk 0:00:17.5]}
36... fxg6 {[%clk 0:00:06.4]} 37. Ng5 {[%clk 0:00:17.3]} 37... Bxe5 {[%clk
0:00:03.7]} 38. f7+ {[%clk 0:00:17.3]} 1-0

[Event "Early-Titled-Tuesday-Blitz-November-28-2023"]
[Site "Chess.com"]
[Date "2023.11.28"]
[Round "5"]
[White "IM_ArthurDW08"]
[Black "MatthewG-p4p"]
[Result "0-1"]
[WhiteElo "2787"]
[BlackElo "2949"]
[TimeControl "180+1"]
[EndTime "8:57:50 PST"]
[Termination "MatthewG-p4p won by resignation"]

1. e4 {[%clk 0:03:00.9]} 1... e6 {[%clk 0:02:54.8]} 2. d4 {[%clk 0:03:00.5]}
2... d5 {[%clk 0:02:54.9]} 3. Nc3 {[%clk 0:03:00]} 3... Bb4 {[%clk 0:02:54.1]}
4. Ne2 {[%clk 0:02:59.5]} 4... Nf6 {[%clk 0:02:50.8]} 5. e5 {[%clk 0:02:59.4]}
5... Nfd7 {[%clk 0:02:50.4]} 6. a3 {[%clk 0:02:59.9]} 6... Be7 {[%clk
0:02:50.1]} 7. f4 {[%clk 0:03:00.6]} 7... c5 {[%clk 0:02:50.5]} 8. Be3 {[%clk
0:03:01.2]} 8... Nc6 {[%clk 0:02:50.2]} 9. Qd2 {[%clk 0:03:01.7]} 9... O-O
{[%clk 0:02:49.9]} 10. h4 {[%clk 0:02:58.9]} 10... b6 {[%clk 0:02:46.7]} 11. h5
{[%clk 0:02:58.5]} 11... Ba6 {[%clk 0:02:42.2]} 12. O-O-O {[%clk 0:02:54.6]}
12... Na5 {[%clk 0:02:41.2]} 13. Bg1 {[%clk 0:02:13.1]} 13... Rc8 {[%clk
0:02:02.6]} 14. g4 {[%clk 0:01:54.1]} 14... f6 {[%clk 0:01:28.7]} 15. f5 {[%clk
0:01:49.2]} 15... fxe5 {[%clk 0:01:28.8]} 16. fxe6 {[%clk 0:01:47.9]} 16... Bg5
{[%clk 0:01:08.7]} 17. Be3 {[%clk 0:01:38.9]} 17... Bxe3 {[%clk 0:01:08.8]} 18.
Qxe3 {[%clk 0:01:39.8]} 18... cxd4 {[%clk 0:01:09.6]} 19. Nxd4 {[%clk
0:01:36.6]} 19... exd4 {[%clk 0:00:58.5]} 20. Qxd4 {[%clk 0:01:37.5]} 20... Nc5
{[%clk 0:00:35.5]} 21. Bxa6 {[%clk 0:01:27.5]} 21... Nab3+ {[%clk 0:00:26]} 22.
cxb3 {[%clk 0:01:18.1]} 22... Nxb3+ {[%clk 0:00:26.9]} 23. Kb1 {[%clk 0:01:19]}
23... Nxd4 {[%clk 0:00:26.7]} 24. Rxd4 {[%clk 0:01:17.6]} 24... Qf6 {[%clk
0:00:13.9]} 25. Rhd1 {[%clk 0:01:08.3]} 25... Rxc3 {[%clk 0:00:12.2]} 26. bxc3
{[%clk 0:01:01.1]} 26... Qxe6 {[%clk 0:00:12.5]} 27. Bb7 {[%clk 0:01:00.6]}
27... Qe7 {[%clk 0:00:10.3]} 28. Bxd5+ {[%clk 0:01:00.6]} 28... Kh8 {[%clk
0:00:11]} 29. Ka2 {[%clk 0:00:50.4]} 29... b5 {[%clk 0:00:10.6]} 30. Bb3 {[%clk
0:00:44.8]} 30... a5 {[%clk 0:00:10.9]} 31. a4 {[%clk 0:00:44.1]} 31... bxa4
{[%clk 0:00:10.2]} 32. Bxa4 {[%clk 0:00:43.8]} 32... Qc5 {[%clk 0:00:10.4]} 33.
Rd8 {[%clk 0:00:40.5]} 33... Qf2+ {[%clk 0:00:06.8]} 34. R1d2 {[%clk 0:00:38.8]}
34... Qf6 {[%clk 0:00:06.2]} 35. Rxf8+ {[%clk 0:00:35.1]} 35... Qxf8 {[%clk
0:00:07.1]} 36. c4 {[%clk 0:00:35]} 36... g6 {[%clk 0:00:05.8]} 37. hxg6 {[%clk
0:00:30.7]} 37... hxg6 {[%clk 0:00:05.7]} 38. Bb5 {[%clk 0:00:29.6]} 38... Qb4
{[%clk 0:00:05.1]} 39. Rd7 {[%clk 0:00:25.1]} 39... a4 {[%clk 0:00:04.7]} 40.
Ra7 {[%clk 0:00:25.7]} 40... Qb3+ {[%clk 0:00:04.8]} 41. Ka1 {[%clk 0:00:26]}
41... a3 {[%clk 0:00:05.5]} 0-1

[Event "Early-Titled-Tuesday-Blitz-November-28-2023"]
[Site "Chess.com"]
[Date "2023.11.28"]
[Round "5"]
[White "YouShallNotPass001"]
[Black "averageFM"]
[Result "0-1"]
[WhiteElo "2452"]
[BlackElo "2613"]
[TimeControl "180+1"]
[EndTime "8:57:53 PST"]
[Termination "averageFM won by resignation"]

1. Nf3 {[%clk 0:03:00.9]} 1... Nf6 {[%clk 0:02:57.3]} 2. e3 {[%clk 0:03:01.8]}
2... d5 {[%clk 0:02:55.2]} 3. Be2 {[%clk 0:03:02.7]} 3... e6 {[%clk 0:02:55.6]}
4. O-O {[%clk 0:03:03.6]} 4... Be7 {[%clk 0:02:55.4]} 5. d4 {[%clk 0:03:04.5]}
5... O-O {[%clk 0:02:55.4]} 6. c4 {[%clk 0:03:05.4]} 6... b6 {[%clk 0:02:54.8]}
7. Nc3 {[%clk 0:03:06.3]} 7... Ba6 {[%clk 0:02:54.6]} 8. cxd5 {[%clk 0:03:05.9]}
8... Bxe2 {[%clk 0:02:53.9]} 9. Qxe2 {[%clk 0:03:05]} 9... exd5 {[%clk
0:02:52.9]} 10. Ne5 {[%clk 0:03:05.5]} 10... c5 {[%clk 0:02:50]} 11. Rd1 {[%clk
0:03:03.8]} 11... cxd4 {[%clk 0:02:48.8]} 12. Rxd4 {[%clk 0:03:02.6]} 12... Qc7
{[%clk 0:02:44.5]} 13. Nf3 {[%clk 0:02:54]} 13... Nc6 {[%clk 0:02:44]} 14. Rd1
{[%clk 0:02:40.4]} 14... Rad8 {[%clk 0:02:43.4]} 15. b3 {[%clk 0:02:39.1]} 15...
Ne4 {[%clk 0:02:23.9]} 16. Bb2 {[%clk 0:02:25.3]} 16... Nxc3 {[%clk 0:01:28]}
17. Bxc3 {[%clk 0:02:26.2]} 17... Rfe8 {[%clk 0:01:25.4]} 18. Qb2 {[%clk
0:02:24.1]} 18... f6 {[%clk 0:01:24.1]} 19. Rac1 {[%clk 0:02:23.4]} 19... Qd6
{[%clk 0:01:17.1]} 20. Rc2 {[%clk 0:02:21.6]} 20... Qe6 {[%clk 0:01:15.7]} 21.
Rcd2 {[%clk 0:02:20.9]} 21... a5 {[%clk 0:01:10.4]} 22. Nd4 {[%clk 0:02:10.5]}
22... Nxd4 {[%clk 0:01:09.2]} 23. Bxd4 {[%clk 0:02:11.2]} 23... Bb4 {[%clk
0:01:08.8]} 24. Bc3 {[%clk 0:02:09.2]} 24... Bc5 {[%clk 0:01:07.2]} 25. g3
{[%clk 0:02:08.2]} 25... h5 {[%clk 0:01:06]} 26. Bd4 {[%clk 0:02:07.4]} 26...
Bb4 {[%clk 0:01:05.4]} 27. Rd3 {[%clk 0:02:03]} 27... h4 {[%clk 0:01:04.7]} 28.
Qe2 {[%clk 0:02:02.6]} 28... h3 {[%clk 0:00:47.7]} 29. Qh5 {[%clk 0:01:58.7]}
29... Rc8 {[%clk 0:00:46.9]} 30. g4 {[%clk 0:01:50.5]} 30... Rc2 {[%clk
0:00:41.4]} 31. Qxh3 {[%clk 0:01:50.9]} 31... Rxa2 {[%clk 0:00:40.8]} 32. Qf3
{[%clk 0:01:51.6]} 32... Qe4 {[%clk 0:00:37.6]} 33. Kg2 {[%clk 0:01:50.1]} 33...
Rc8 {[%clk 0:00:37]} 34. Bxb6 {[%clk 0:01:45.4]} 34... Rcc2 {[%clk 0:00:35.6]}
35. Qxe4 {[%clk 0:01:43.9]} 35... Rxf2+ {[%clk 0:00:33.8]} 36. Kh3 {[%clk
0:01:44.3]} 36... Rxh2+ {[%clk 0:00:29.6]} 37. Kg3 {[%clk 0:01:44.2]} 37... dxe4
{[%clk 0:00:29.8]} 38. Rd8+ {[%clk 0:01:43.8]} 38... Kh7 {[%clk 0:00:29.4]} 39.
Kf4 {[%clk 0:01:44.3]} 39... Rhg2 {[%clk 0:00:24.7]} 40. Rh1+ {[%clk 0:01:32.9]}
40... Kg6 {[%clk 0:00:24.2]} 41. Rh4 {[%clk 0:01:33.3]} 41... Be1 {[%clk
0:00:20]} 42. Rh1 {[%clk 0:01:30.5]} 42... Raf2+ {[%clk 0:00:18.8]} 43. Kxe4
{[%clk 0:01:29.8]} 43... Rxg4+ {[%clk 0:00:19]} 44. Kd5 {[%clk 0:01:27.4]} 44...
Rd2+ {[%clk 0:00:19.1]} 45. Bd4 {[%clk 0:01:26.6]} 45... Bf2 {[%clk 0:00:18.5]}
46. Re8 {[%clk 0:01:16.9]} 46... Bxe3 {[%clk 0:00:17.4]} 47. Rxe3 {[%clk
0:01:17.8]} 47... Rgxd4+ {[%clk 0:00:17.5]} 48. Kc5 {[%clk 0:01:18.4]} 48...
R4d3 {[%clk 0:00:17.7]} 49. Rg1+ {[%clk 0:01:16.7]} 49... Kf7 {[%clk 0:00:17.3]}
50. Rxd3 {[%clk 0:01:14.3]} 50... Rxd3 {[%clk 0:00:17.1]} 51. Kc4 {[%clk
0:01:15.2]} 51... Re3 {[%clk 0:00:17.2]} 52. Ra1 {[%clk 0:01:16.1]} 52... Re5
{[%clk 0:00:17.3]} 53. Rd1 {[%clk 0:01:15]} 53... g5 {[%clk 0:00:17.3]} 54. Rd7+
{[%clk 0:01:15.6]} 54... Kg6 {[%clk 0:00:17.4]} 55. Kd4 {[%clk 0:01:15]} 55...
Kf5 {[%clk 0:00:17.4]} 56. Rd8 {[%clk 0:01:14.8]} 56... g4 {[%clk 0:00:17.6]}
57. Rg8 {[%clk 0:01:15]} 57... Kf4 {[%clk 0:00:17.4]} 58. Rg6 {[%clk 0:01:14.8]}
58... f5 {[%clk 0:00:16.8]} 59. Rg8 {[%clk 0:01:14.9]} 59... Re4+ {[%clk
0:00:17]} 60. Kd3 {[%clk 0:01:15.3]} 60... g3 {[%clk 0:00:17.3]} 61. Rg7 {[%clk
0:01:15.1]} 61... Kf3 {[%clk 0:00:16.8]} 62. Rf7 {[%clk 0:01:14.5]} 62... g2
{[%clk 0:00:16.2]} 63. Rxf5+ {[%clk 0:01:14.5]} 63... Rf4 {[%clk 0:00:16.6]} 64.
Rg5 {[%clk 0:01:14]} 64... Rg4 {[%clk 0:00:16.8]} 65. Rf5+ {[%clk 0:01:13.9]}
65... Kg3 {[%clk 0:00:17]} 0-1

[Event "Early-Titled-Tuesday-Blitz-November-28-2023"]
[Site "Chess.com"]
[Date "2023.11.28"]
[Round "5"]
[White "GKARU"]
[Black "kkpanu9"]
[Result "1-0"]
[WhiteElo "2524"]
[BlackElo "2065"]
[TimeControl "180+1"]
[EndTime "8:57:53 PST"]
[Termination "GKARU won on time"]

1. d4 {[%clk 0:02:06.4]} 1... Nf6 {[%clk 0:02:59]} 2. Nf3 {[%clk 0:02:06.3]}
2... e6 {[%clk 0:02:58]} 3. Bg5 {[%clk 0:02:06.5]} 3... Be7 {[%clk 0:02:57]} 4.
Nbd2 {[%clk 0:02:07]} 4... d5 {[%clk 0:02:56.1]} 5. e3 {[%clk 0:02:07.1]} 5...
h6 {[%clk 0:02:54.5]} 6. Bh4 {[%clk 0:02:06.8]} 6... b6 {[%clk 0:02:55]} 7. c4
{[%clk 0:02:06.9]} 7... Bb7 {[%clk 0:02:53.4]} 8. Bxf6 {[%clk 0:02:06.7]} 8...
Bxf6 {[%clk 0:02:52.9]} 9. cxd5 {[%clk 0:02:07.6]} 9... exd5 {[%clk 0:02:48.4]}
10. Qa4+ {[%clk 0:02:06.6]} 10... Qd7 {[%clk 0:02:42.5]} 11. Bb5 {[%clk
0:02:06.6]} 11... c6 {[%clk 0:02:40.5]} 12. Bd3 {[%clk 0:02:06.7]} 12... O-O
{[%clk 0:02:37]} 13. O-O {[%clk 0:02:04.2]} 13... Qe7 {[%clk 0:02:05.9]} 14.
Rfc1 {[%clk 0:02:00]} 14... Nd7 {[%clk 0:02:05.5]} 15. b4 {[%clk 0:02:00.6]}
15... b5 {[%clk 0:02:03]} 16. Qb3 {[%clk 0:01:58.3]} 16... Nb6 {[%clk
0:02:02.8]} 17. a3 {[%clk 0:01:51]} 17... a5 {[%clk 0:01:50.4]} 18. e4 {[%clk
0:01:43]} 18... axb4 {[%clk 0:01:47.8]} 19. e5 {[%clk 0:01:41.3]} 19... Bg5
{[%clk 0:01:41.6]} 20. Nxg5 {[%clk 0:01:34.6]} 20... Qxg5 {[%clk 0:01:33.5]} 21.
Nf3 {[%clk 0:01:33.6]} 21... Qe7 {[%clk 0:01:23.9]} 22. axb4 {[%clk 0:01:34.5]}
22... Nc4 {[%clk 0:01:00.7]} 23. h3 {[%clk 0:01:33.9]} 23... Rfb8 {[%clk
0:00:49.8]} 24. Bc2 {[%clk 0:01:33.3]} 24... Bc8 {[%clk 0:00:49.1]} 25. Kh2
{[%clk 0:01:24.1]} 25... Ra7 {[%clk 0:00:44.3]} 26. Rxa7 {[%clk 0:01:22.2]}
26... Qxa7 {[%clk 0:00:43.3]} 27. Qd3 {[%clk 0:01:22.9]} 27... g6 {[%clk
0:00:36.3]} 28. g4 {[%clk 0:01:16.2]} 28... Ra8 {[%clk 0:00:30.1]} 29. Rb1
{[%clk 0:01:11.1]} 29... Qa3 {[%clk 0:00:27.7]} 30. Rb3 {[%clk 0:01:11.1]} 30...
Qc1 {[%clk 0:00:27.1]} 31. Kg3 {[%clk 0:01:06.8]} 31... Ra2 {[%clk 0:00:17.2]}
32. Rc3 {[%clk 0:01:03.1]} 32... Ra1 {[%clk 0:00:11.7]} 33. h4 {[%clk
0:00:51.1]} 33... Qh1 {[%clk 0:00:11]} 34. h5 {[%clk 0:00:48.1]} 34... g5 {[%clk
0:00:08.2]} 35. Qh7+ {[%clk 0:00:45.4]} 35... Kf8 {[%clk 0:00:08.8]} 36. Qxh6+
{[%clk 0:00:45.1]} 36... Ke8 {[%clk 0:00:08.6]} 37. Qxg5 {[%clk 0:00:36.5]}
37... Rg1+ {[%clk 0:00:05.8]} 38. Nxg1 {[%clk 0:00:36.2]} 38... Qxg1+ {[%clk
0:00:06.7]} 39. Kf3 {[%clk 0:00:36.5]} 39... Qh1+ {[%clk 0:00:04.3]} 40. Ke2
{[%clk 0:00:34.3]} 40... Qg2 {[%clk 0:00:02.4]} 41. Qg8+ {[%clk 0:00:32.9]}
41... Kd7 {[%clk 0:00:02]} 42. Qxf7+ {[%clk 0:00:32.2]} 42... Kd8 {[%clk
0:00:01.3]} 43. Qf8+ {[%clk 0:00:31.9]} 43... Kc7 {[%clk 0:00:01.5]} 44. Qg7+
{[%clk 0:00:31.5]} 44... Kb8 {[%clk 0:00:01.3]} 45. Rg3 {[%clk 0:00:31.7]} 1-0